fUSD/lending_fUSD_20260213
["ID","MTS","AMOUNT","RATE_DAILY","PERIOD"]
[405288574,1770946244609,-155.32691761,0.000149,2]
[405288575,1770946244619,-155.32691761,0.000149,2]
[405288576,1770946244628,-560.14,0.00014925,2]
[405288577,1770946244639,-2054.31299142,0.00015,2]
[405288578,1770946244648,-5696.46077191,0.00015,2]
[405288579,1770946244658,-418.58996151,0.00015,2]
[405288580,1770946244668,-250.0,0.00015,2]
[405288581,1770946244678,-4302.67,0.00015075,2]
[405288582,1770946244687,-500.0,0.00015152,2]
[405288583,1770946244698,-539.33,0.00015152,2]
[405288584,1770946244708,-866.14,0.00015152,2]
[405288585,1770946244717,-1517.64,0.000153,2]
[405288586,1770946244727,-2000.0,0.00015316,2]
[405288587,1770946244737,-2000.0,0.00015316,2]
[405288588,1770946244747,-1503.71008588,0.00015316,2]
[405288589,1770946244757,-3368.57719183,0.00015362,2]
[405288590,1770946244767,-509.29979674,0.000154,2]
[405288591,1770946244778,-577.44,0.00015492,2]
[405288592,1770946244787,-507.206913,0.00015533,7]
[405288593,1770946244797,-272.77,0.00015554,2]
[405288594,1770946244806,-45305.95216971,0.0001561,2]
[405288595,1770946244815,-963.86878895,0.0001575,2]
[405288596,1770946244825,-500.0,0.0001576,2]
[405288597,1770946244835,-500.0,0.0001576,2]
[405288598,1770946244846,-4302.67,0.00015761,2]
[405288599,1770946244857,-2244.33116058,0.00015807,2]
[405288600,1770946244867,-235.13005617,0.00015835,2]
[405288601,1770946244877,-2500.0,0.00015864,2]
[405288602,1770946244888,-2500.0,0.00015864,2]
[405288603,1770946244898,-1000.0,0.00015969,2]
[405288604,1770946244908,-302.38565624,0.00016,2]
[405288605,1770946244918,-9999.99,0.00016116,2]
[405288606,1770946244928,-3620.0,0.00016123,2]
[405288607,1770946244939,-6169.9501548,0.00016136,2]
[405288608,1770946244949,-500.0,0.00016173,2]
[405288609,1770946244961,-503.40722457,0.00016173,2]
[405288610,1770946244971,-500.0,0.00016173,2]
[405288611,1770946244982,-500.0,0.00016173,2]
[405288612,1770946244992,-501.49937878,0.00016173,2]
[405288613,1770946245003,-500.0,0.00016173,2]
[405288614,1770946245014,-500.0,0.00016173,2]
[405288615,1770946245025,-500.0,0.00016173,2]
[405288616,1770946245035,-163.75258398,0.00016173,2]
[405288617,1770946245044,-560.67882942,0.00016173,2]
[405288618,1770946245054,-500.0,0.00016173,2]
[405288619,1770946245063,-161.82965337,0.00016173,2]
[405288620,1770946245073,-500.0,0.00016173,2]
[405288621,1770946245083,-500.0,0.00016173,2]
[405288622,1770946245093,-500.0,0.00016173,2]
[405288623,1770946245103,-500.0,0.00016173,2]
[405288624,1770946245113,-161.74480548,0.00016173,2]
[405288625,1770946245123,-500.48983529,0.00016173,2]
[405288626,1770946245133,-500.0,0.00016173,2]
[405288627,1770946245143,-500.0,0.00016173,2]
[405288628,1770946245152,-500.0,0.00016173,2]
[405288629,1770946245164,-500.0,0.00016173,2]
[405288630,1770946245173,-500.0,0.00016173,2]
[405288631,1770946245184,-500.0,0.00016173,2]
[405288632,1770946245193,-513.86696477,0.00016173,2]
[405288633,1770946245206,-500.0,0.00016173,2]
[405288634,1770946245216,-500.0,0.00016173,2]
[405288635,1770946245226,-500.0,0.00016173,2]
[405288636,1770946245236,-523.24197668,0.00016173,2]
[405288637,1770946245245,-162.32234067,0.00016173,2]
[405288638,1770946245254,-501.86219137,0.00016173,2]
[405288639,1770946245263,-500.0,0.00016173,2]
[405288640,1770946245272,-502.68727614,0.00016173,2]
[405288641,1770946245281,-502.15975128,0.00016173,2]
[405288642,1770946245290,-500.0,0.00016173,2]
[405288643,1770946245300,-500.0,0.00016173,2]
[405288644,1770946245309,-500.0,0.00016173,2]
[405288645,1770946245319,-160.31878935,0.00016173,2]
[405288646,1770946245328,-502.19144645,0.00016173,2]
[405288647,1770946245338,-170.07066788,0.00016173,2]
[405288648,1770946245347,-500.0,0.00016173,2]
[405288649,1770946245356,-160.89865825,0.00016173,2]
[405288650,1770946245366,-502.97943379,0.00016173,2]
[405288651,1770946245375,-501.3619325,0.00016173,2]
[405288652,1770946245386,-500.2976467,0.00016173,2]
[405288653,1770946245395,-500.9662317,0.00016173,2]
[405288654,1770946245405,-500.0,0.00016173,2]
[405288655,1770946245414,-500.38504669,0.00016173,2]
[405288656,1770946245423,-500.0,0.00016173,2]
[405288657,1770946245433,-503.16201801,0.00016173,2]
[405288658,1770946245442,-500.0,0.00016173,2]
[405288659,1770946245454,-567.62074081,0.00016173,2]
[405288660,1770946245463,-185.89561959,0.00016173,2]
[405288661,1770946245472,-500.0,0.00016173,2]
[405288662,1770946245482,-596.02960806,0.00016173,2]
[405288663,1770946245491,-487.24477064,0.00016173,2]
[405288664,1770946245501,-5000.00812613,0.000162,5]
[405288665,1770946245511,-12649.0,0.00016265,2]
[405288666,1770946245521,-3162.0,0.00016266,2]
[405288667,1770946245531,-560.14,0.00016281,2]
[405288668,1770946245541,-200.0,0.0001634,2]
[405288669,1770946245551,-1166.07308893,0.00016412,2]
[405288670,1770946245561,-3000.0,0.00016412,2]
[405288671,1770946245571,-150.81724547,0.00016438,2]
[405288672,1770946245581,-1000.0,0.00016438,2]
[405288673,1770946245590,-4302.67,0.00016446,2]
[405288674,1770946245600,-361.26710173,0.000166,2]
[405288675,1770946245611,-3368.57719183,0.00016631,2]
[405288676,1770946245621,-1000.0,0.00016712,2]
[405288677,1770946245631,-458.5282504,0.00016721,2]
[405288678,1770946245641,-1000.0,0.00016721,2]
[405288679,1770946245651,-1000.0,0.00016721,2]
[405288680,1770946245660,-1000.0,0.00016721,2]
[405288681,1770946245671,-1000.0,0.00016721,2]
[405288682,1770946245681,-650.05242785,0.00016721,2]
[405288683,1770946245695,-514.7416331,0.00016721,2]
[405288684,1770946245706,-1000.0,0.00016721,2]
[405288685,1770946245715,-1000.0,0.00016721,2]
[405288686,1770946245725,-1000.0,0.00016721,2]
[405288687,1770946245734,-1000.0,0.00016721,2]
[405288688,1770946245744,-1000.0,0.00016721,2]
[405288689,1770946245753,-1000.0,0.00016721,2]
[405288690,1770946245763,-1000.0,0.00016721,2]
[405288691,1770946245772,-501.59682174,0.00016721,2]
[405288692,1770946245781,-1000.0,0.00016721,2]
[405288693,1770946245791,-1000.0,0.00016721,2]
[405288694,1770946245801,-1095.58692037,0.00016721,2]
[405288695,1770946245810,-1000.0,0.00016721,2]
[405288696,1770946245820,-1000.0,0.00016721,2]
[405288697,1770946245830,-1000.0,0.00016721,2]
[405288698,1770946245840,-1000.0,0.00016721,2]
[405288699,1770946245849,-1000.0,0.00016721,2]
[405288700,1770946245859,-1000.0,0.00016721,2]
[405288701,1770946245868,-1005.92637205,0.00016721,2]
[405288702,1770946245877,-1026.7142926,0.00016721,2]
[405288703,1770946245887,-3500.0,0.0001696,2]
[405288704,1770946245897,-320.78,0.00016961,2]
[405288705,1770946245907,-500.0,0.00016983,2]
[405288706,1770946245917,-539.33,0.00016983,2]
[405288707,1770946245926,-866.14,0.00016983,2]
[405288708,1770946245936,-1999.0,0.00016986,2]
[405288709,1770946245945,-376631.98705969,0.00017,2]
[405288711,1770946245956,-300.0,0.00017,2]
[405288712,1770946245966,-151.20813243,0.00017092,2]
[405288713,1770946245975,-502.83485724,0.00017268,2]
[405288714,1770946245984,-1000.0,0.00017268,2]
[405288715,1770946245994,-1515.18498636,0.00017268,2]
[405288716,1770946246003,-1170.51466036,0.00017268,2]
[405288717,1770946246012,-1500.0,0.00017268,2]
[405288718,1770946246022,-500.0,0.00017268,2]
[405288719,1770946246032,-1492.57355052,0.00017268,2]
[405288720,1770946246042,-393.35276973,0.00017268,2]
[405288721,1770946246051,-501.10321426,0.00017268,2]
[405288722,1770946246061,-1500.0,0.00017268,2]
[405288723,1770946246070,-1500.0,0.00017268,2]
[405288724,1770946246079,-1500.0,0.00017268,2]
[405288725,1770946246088,-1500.0,0.00017268,2]
[405288726,1770946246097,-1500.0,0.00017268,2]
[405288727,1770946246106,-1500.0,0.00017268,2]
[405288728,1770946246115,-594.1463812,0.00017268,2]
[405288729,1770946246125,-800.97860377,0.00017268,2]
[405288730,1770946246134,-577.44,0.00017286,2]
[405288731,1770946246144,-272.77,0.00017409,2]
[405288732,1770946246156,-947.61473378,0.00017508,2]
[405288733,1770946246165,-1000.0,0.00017599,7]
[405288734,1770946246174,-168.0,0.00017638,2]
[405288735,1770946246183,-168.0,0.0001764,2]
[405288736,1770946246194,-783.75632994,0.000177,2]
[405288737,1770946246206,-168.0,0.00017704,2]
[405288738,1770946246215,-2218.0,0.00017724,2]
[405288739,1770946246225,-2218.0,0.00017729,2]
[405288740,1770946246236,-3262.0,0.00017734,2]
[405288741,1770946246246,-500.0,0.00017808,2]
[405288742,1770946246257,-500.0,0.00017808,2]
[405288743,1770946246267,-800.0,0.00017808,2]
[405288744,1770946246278,-2000.0,0.00017816,2]
[405288745,1770946246287,-2000.0,0.00017816,2]
[405288746,1770946246297,-1503.05497251,0.00017816,2]
[405288747,1770946246306,-2000.0,0.00017816,2]
[405288748,1770946246316,-1205.1081519,0.00017816,2]
[405288749,1770946246326,-936.82859563,0.00017816,2]
[405288750,1770946246336,-2008.47777759,0.00017816,2]
[405288751,1770946246345,-774.57727978,0.0001786,2]
[405288752,1770946246354,-500.0,0.00017863,2]
[405288753,1770946246363,-17709.0,0.00017891,2]
[405288754,1770946246372,-4427.0,0.00017893,2]
[405288755,1770946246381,-500.0,0.00017899,2]
[405288756,1770946246391,-500.0,0.00017899,2]
[405288757,1770946246400,-235.13005617,0.000179,2]
[405288758,1770946246410,-3368.57719183,0.000179,2]
[405288759,1770946246419,-963.86878895,0.000179,2]
[405288760,1770946246430,-6169.9501548,0.000179,2]
[405288761,1770946246439,-500.0,0.00017918,2]
[405288763,1770946246449,-524.41823063,0.00017956,2]
[405288764,1770946246458,-500.0,0.00017965,2]
[405288765,1770946246468,-500.0,0.00017965,2]
[405288766,1770946246477,-2708.8698807,0.00017966,2]
[405288767,1770946246487,-216781.77541451,0.00017966,2]
[405288770,1770946246718,-1756.87349511,0.00011096,2]
[405288772,1770946246729,-795.58150489,0.00011099,2]
[405288773,1770946322351,200.0,8.9e-05,3]
[405288774,1770946324430,400.0,9e-05,3]
[405288776,1770946390400,209.09,9.1e-05,30]
[405288777,1770946390820,209.09,9.191e-05,30]
[405288778,1770946538872,-1200.0,8.599e-05,2]
[405288779,1770946538900,-419.05395549,8.6e-05,2]
[405288780,1770946538927,-341.91151184,8.6e-05,2]
[405288781,1770946538964,-278.93291028,8.6e-05,2]
[405288782,1770946538990,-443.96259132,8.6e-05,2]
[405288819,1770947432378,-300.0,7.744e-05,2]
[405288820,1770947432389,-300.0,7.744e-05,2]
[405288821,1770947432399,-1200.0,7.744e-05,2]
[405288822,1770947432409,-215.0,7.745e-05,2]
[405288823,1770947432419,-13452.83,7.745e-05,2]
[405288824,1770947432431,-1852.42,7.775e-05,2]
[405288825,1770947432440,-5703.90261445,7.945e-05,2]
[405288826,1770947432453,-3279.92221155,7.945e-05,2]
[405288827,1770947432463,-7670.94,8.117e-05,2]
[405288828,1770947432473,-250.0,8.147e-05,2]
[405288829,1770947432482,-300.0,8.177e-05,2]
[405288830,1770947432492,-300.0,8.177e-05,2]
[405288831,1770947432502,-3747.477092,8.178e-05,2]
[405288832,1770947432511,-253.27126984,8.217e-05,2]
[405288833,1770947432521,-3374.0,8.232e-05,2]
[405288834,1770947432534,-157.94858373,8.232e-05,2]
[405288835,1770947432543,-567.0,8.232e-05,2]
[405288836,1770947432553,-150.0,8.232e-05,2]
[405288837,1770947432562,-3374.0,8.287e-05,2]
[405288838,1770947432572,-567.0,8.287e-05,2]
[405288839,1770947432583,-205.76325723,8.287e-05,2]
[405288840,1770947432594,-15828.57,8.309e-05,2]
[405288841,1770947432606,-3374.0,8.342e-05,2]
[405288842,1770947432615,-567.0,8.342e-05,2]
[405288843,1770947432624,-567.0,8.396e-05,2]
[405288844,1770947432634,-3374.0,8.396e-05,2]
[405288845,1770947432644,-1077.684,8.436e-05,2]
[405288846,1770947432654,-152.901,8.436e-05,2]
[405288847,1770947432663,-567.0,8.451e-05,2]
[405288848,1770947432672,-3374.0,8.451e-05,2]
[405288849,1770947432682,-152.80899539,8.48e-05,2]
[405288850,1770947432691,-150.0,8.505e-05,2]
[405288851,1770947432701,-567.0,8.506e-05,2]
[405288852,1770947432710,-3374.0,8.506e-05,2]
[405288853,1770947432720,-6301.8963,8.508e-05,2]
[405288854,1770947432730,-2500.0,8.508e-05,2]
[405288855,1770947432740,-1680.0,8.519e-05,2]
[405288856,1770947432750,-567.0,8.561e-05,2]
[405288857,1770947432760,-3374.0,8.561e-05,2]
[405288858,1770947432769,-22263.89044691,8.598e-05,2]
[405288859,1770947432779,-136.52373747,8.6e-05,2]
[405288860,1770947432788,-1867.45344446,8.6e-05,2]
[405288861,1770947432797,-268.12,8.6e-05,2]
[405288862,1770947432807,-336.88,8.607e-05,2]
[405288863,1770947432816,-567.0,8.616e-05,2]
[405288864,1770947432826,-3374.0,8.616e-05,2]
[405288865,1770947432835,-567.0,8.67e-05,2]
[405288866,1770947432845,-3374.0,8.67e-05,2]
[405288867,1770947432854,-750.0,8.707e-05,2]
[405288868,1770947432863,-567.0,8.725e-05,2]
[405288869,1770947432872,-3374.0,8.725e-05,2]
[405288870,1770947432881,-567.0,8.78e-05,2]
[405288871,1770947432890,-3374.0,8.78e-05,2]
[405288872,1770947432900,-567.0,8.835e-05,2]
[405288873,1770947432910,-3374.0,8.835e-05,2]
[405288874,1770947432919,-9999.99,8.864e-05,2]
[405288875,1770947432929,-345.76,8.864e-05,2]
[405288876,1770947432939,-259.38,8.864e-05,2]
[405288877,1770947432949,-5229.7709553,8.864e-05,2]
[405288878,1770947432962,-609.8984744,8.864e-05,2]
[405288880,1770947438210,-378.29286825,8.864e-05,2]
[405288881,1770947438264,-3782.02770205,8.864e-05,2]
[405288882,1770947438274,-150.99,8.864e-05,2]
[405288883,1770947438284,-999.99,8.864e-05,2]
[405288884,1770947438294,-788.39178057,8.864e-05,2]
[405288885,1770947438303,-336.88,8.881e-05,2]
[405288886,1770947438313,-3374.0,8.89e-05,2]
[405288887,1770947438323,-567.0,8.89e-05,2]
[405288888,1770947438335,-14000.57,8.915e-05,2]
[405288889,1770947438345,-193.65548983,8.928e-05,2]
[405288890,1770947438355,-250.0,8.928e-05,2]
[405288891,1770947438366,-3374.0,8.944e-05,2]
[405288892,1770947438376,-567.0,8.944e-05,2]
[405288893,1770947438385,-405.56,8.954e-05,2]
[405288894,1770947438395,-3094.0,8.991e-05,2]
[405288895,1770947438405,-420.0,8.994e-05,2]
[405288896,1770947438415,-3374.0,8.999e-05,2]
[405288897,1770947438425,-567.0,8.999e-05,2]
[405288898,1770947438435,-32832.125,9e-05,2]
[405288899,1770947438446,-259.7041,9e-05,2]
[405288900,1770947438456,-3374.0,9.054e-05,2]
[405288901,1770947438468,-567.0,9.054e-05,2]
[405288902,1770947438481,-605.86923825,9.099e-05,2]
[405288903,1770947438492,-599.6611,9.1e-05,2]
[405288904,1770947438502,-3374.0,9.109e-05,2]
[405288905,1770947438513,-567.0,9.109e-05,2]
[405288906,1770947438524,-336.88,9.155e-05,2]
[405288907,1770947438535,-3374.0,9.164e-05,2]
[405288908,1770947438548,-567.0,9.164e-05,2]
[405288909,1770947438558,-158.35880626,9.178e-05,2]
[405288910,1770947438569,-150.0,9.178e-05,2]
[405288911,1770947438579,-265.88984898,9.178e-05,2]
[405288912,1770947438591,-158.86944068,9.178e-05,2]
[405288913,1770947438602,-227.61528811,9.178e-05,2]
[405288914,1770947438612,-500.0,9.178e-05,2]
[405288915,1770947438622,-500.0,9.178e-05,2]
[405288916,1770947438632,-500.0,9.178e-05,2]
[405288917,1770947438642,-150.0,9.178e-05,2]
[405288918,1770947438653,-3374.0,9.218e-05,2]
[405288919,1770947438663,-567.0,9.218e-05,2]
[405288920,1770947438673,-202.17412439,9.233e-05,2]
[405288921,1770947438683,-500.0,9.233e-05,2]
[405288922,1770947438695,-500.0,9.233e-05,2]
[405288923,1770947438704,-500.0,9.233e-05,2]
[405288924,1770947438714,-200.0,9.233e-05,2]
[405288925,1770947438724,-3374.0,9.273e-05,2]
[405288926,1770947438735,-567.0,9.273e-05,2]
[405288927,1770947438745,-500.0,9.288e-05,2]
[405288928,1770947438756,-500.0,9.288e-05,2]
[405288929,1770947438767,-500.0,9.288e-05,2]
[405288930,1770947438777,-3374.0,9.328e-05,2]
[405288931,1770947438787,-567.0,9.328e-05,2]
[405288932,1770947438798,-500.0,9.342e-05,2]
[405288933,1770947438808,-500.0,9.342e-05,2]
[405288934,1770947438818,-500.0,9.342e-05,2]
[405288935,1770947438828,-10000.0,9.356e-05,2]
[405288936,1770947438839,-255.0,9.356e-05,2]
[405288937,1770947438851,-2351.0,9.371e-05,2]
[405288938,1770947438862,-3374.0,9.383e-05,2]
[405288939,1770947438872,-567.0,9.383e-05,2]
[405288940,1770947438882,-463.52072258,9.397e-05,2]
[405288941,1770947438894,-500.0,9.397e-05,2]
[405288942,1770947438904,-500.0,9.397e-05,2]
[405288943,1770947439090,-336.88,9.429e-05,2]
[405288944,1770947439115,-3374.0,9.437e-05,2]
[405288945,1770947439125,-567.0,9.437e-05,2]
[405288946,1770947439136,-500.0,9.452e-05,2]
[405288947,1770947439145,-500.0,9.452e-05,2]
[405288948,1770947439155,-200.0,9.452e-05,2]
[405288949,1770947439165,-589.01274732,9.492e-05,2]
[405288950,1770947439175,-3386.1660228,9.492e-05,2]
[405288951,1770947439185,-500.0,9.507e-05,2]
[405288952,1770947439194,-500.0,9.507e-05,2]
[405288953,1770947439204,-200.0,9.507e-05,2]
[405288954,1770947439213,-500.0,9.562e-05,2]
[405288955,1770947439223,-500.0,9.562e-05,2]
[405288956,1770947439234,-200.0,9.562e-05,2]
[405288957,1770947439244,-296.0823075,9.616e-05,2]
[405288958,1770947439253,-500.0,9.616e-05,2]
[405288959,1770947439264,-200.0,9.616e-05,2]
[405288960,1770947439274,-500.0,9.671e-05,2]
[405288961,1770947439284,-200.0,9.671e-05,2]
[405288962,1770947439294,-336.90344325,9.703e-05,2]
[405288963,1770947439304,-500.0,9.726e-05,2]
[405288964,1770947439313,-200.0,9.726e-05,2]
[405288965,1770947439323,-150.0,9.726e-05,2]
[405288966,1770947439332,-500.0,9.726e-05,2]
[405288967,1770947439342,-500.0,9.726e-05,2]
[405288968,1770947439351,-500.0,9.726e-05,2]
[405288969,1770947439360,-500.0,9.726e-05,2]
[405288970,1770947439370,-500.0,9.726e-05,2]
[405288971,1770947439380,-150.0,9.726e-05,2]
[405288972,1770947439389,-500.0,9.726e-05,2]
[405288973,1770947439399,-150.0,9.726e-05,2]
[405288974,1770947439409,-500.0,9.726e-05,2]
[405288975,1770947439418,-275.8371773,9.726e-05,2]
[405288976,1770947439428,-150.0,9.726e-05,2]
[405288977,1770947439437,-500.0,9.726e-05,2]
[405288978,1770947439446,-500.0,9.781e-05,2]
[405288979,1770947439456,-200.0,9.781e-05,2]
[405288980,1770947439465,-150.0,9.781e-05,2]
[405288981,1770947439474,-500.0,9.781e-05,2]
[405288982,1770947439484,-500.0,9.781e-05,2]
[405288983,1770947439494,-500.0,9.781e-05,2]
[405288984,1770947439503,-500.0,9.781e-05,2]
[405288985,1770947439513,-150.0,9.781e-05,2]
[405288986,1770947439522,-500.0,9.781e-05,2]
[405288987,1770947439532,-500.0,9.781e-05,2]
[405288988,1770947439544,-163.74427011,9.781e-05,2]
[405288989,1770947439553,-500.0,9.781e-05,2]
[405288990,1770947439563,-150.0,9.781e-05,2]
[405288991,1770947439572,-500.0,9.781e-05,2]
[405288992,1770947439582,-500.0,9.836e-05,2]
[405288993,1770947439591,-200.0,9.836e-05,2]
[405288994,1770947439600,-150.0,9.836e-05,2]
[405288995,1770947439610,-500.0,9.836e-05,2]
[405288996,1770947439621,-500.0,9.836e-05,2]
[405288997,1770947439630,-186.43025608,9.836e-05,2]
[405288998,1770947439639,-500.0,9.836e-05,2]
[405288999,1770947439649,-194.23259181,9.836e-05,2]
[405289000,1770947439658,-500.0,9.836e-05,2]
[405289001,1770947439668,-500.0,9.836e-05,2]
[405289002,1770947439678,-500.0,9.836e-05,2]
[405289003,1770947439687,-150.0,9.836e-05,2]
[405289004,1770947439697,-500.0,9.836e-05,2]
[405289005,1770947439706,-500.0,9.89e-05,2]
[405289006,1770947439716,-200.0,9.89e-05,2]
[405289007,1770947439727,-222.59637125,9.89e-05,2]
[405289008,1770947439737,-500.0,9.89e-05,2]
[405289009,1770947439746,-454.1573711,9.89e-05,2]
[405289010,1770947439756,-500.0,9.89e-05,2]
[405289011,1770947439765,-500.0,9.89e-05,2]
[405289012,1770947439775,-500.0,9.89e-05,2]
[405289013,1770947439785,-500.0,9.89e-05,2]
[405289014,1770947439793,-250.50360126,9.89e-05,2]
[405289015,1770947439803,-500.0,9.89e-05,2]
[405289016,1770947439813,-482.0,9.894e-05,2]
[405289017,1770947439822,-500.0,9.921e-05,2]
[405289018,1770947439831,-500.0,9.945e-05,2]
[405289019,1770947439840,-200.0,9.945e-05,2]
[405289020,1770947439850,-554.89080403,9.945e-05,2]
[405289021,1770947439860,-500.0,9.945e-05,2]
[405289022,1770947439869,-500.0,9.945e-05,2]
[405289023,1770947439879,-500.0,9.945e-05,2]
[405289024,1770947439891,-351.64327848,9.945e-05,2]
[405289025,1770947439900,-162.2185185,9.945e-05,2]
[405289026,1770947439909,-500.0,0.0001,2]
[405289027,1770947439919,-200.0,0.0001,2]
[405289028,1770947439930,-263.48500607,0.0001,2]
[405289029,1770947439941,-500.0,0.0001,2]
[405289030,1770947439951,-500.0,0.0001,2]
[405289031,1770947439961,-500.0,0.0001,2]
[405289032,1770947439970,-151.0,0.0001,2]
[405289033,1770947439979,-151.0,0.0001,2]
[405289034,1770947439989,-151.0,0.0001,2]
[405289035,1770947439998,-151.0,0.0001,2]
[405289036,1770947440007,-151.0,0.0001,2]
[405289037,1770947440017,-151.0,0.0001,2]
[405289038,1770947440026,-500.0,0.0001,2]
[405289039,1770947440035,-151.0,0.0001,2]
[405289040,1770947440045,-500.0,0.0001,2]
[405289041,1770947440054,-200.0,0.0001,2]
[405289042,1770947440064,-151.0,0.0001,2]
[405289043,1770947440077,-151.0,0.0001,2]
[405289044,1770947440087,-151.0,0.0001,2]
[405289045,1770947440097,-476.74248889,0.0001,2]
[405289046,1770947440106,-500.0,0.0001,2]
[405289047,1770947440117,-151.0,0.0001,2]
[405289048,1770947440126,-151.0,0.0001,2]
[405289049,1770947440136,-556.8619989,0.0001,2]
[405289050,1770947440145,-151.0,0.0001,2]
[405289051,1770947440155,-151.0,0.0001,2]
[405289052,1770947440164,-151.0,0.0001,2]
[405289053,1770947440174,-151.0,0.0001,2]
[405289054,1770947440183,-151.0,0.0001,2]
[405289055,1770947440193,-151.0,0.0001,2]
[405289056,1770947440202,-151.0,0.0001,2]
[405289057,1770947440211,-151.0,0.0001,2]
[405289058,1770947440221,-151.0,0.0001,2]
[405289059,1770947440231,-151.0,0.0001,2]
[405289060,1770947440241,-151.0,0.0001,2]
[405289061,1770947440251,-151.0,0.0001,2]
[405289062,1770947440264,-151.0,0.0001,2]
[405289063,1770947440274,-500.0,0.0001,2]
[405289064,1770947440283,-151.0,0.0001,2]
[405289065,1770947440293,-151.0,0.0001,2]
[405289066,1770947440303,-151.0,0.0001,2]
[405289067,1770947440314,-151.0,0.0001,2]
[405289068,1770947440323,-151.0,0.0001,2]
[405289069,1770947440333,-151.0,0.0001,2]
[405289070,1770947440342,-153.95643455,0.0001,2]
[405289071,1770947440352,-417.22433099,0.0001,2]
[405289072,1770947440362,-200.0,0.0001,2]
[405289073,1770947440371,-175.06822215,0.0001,2]
[405289074,1770947440381,-500.0,0.00010055,2]
[405289075,1770947440391,-200.0,0.00010055,2]
[405289076,1770947440401,-500.0,0.00010055,2]
[405289077,1770947440411,-500.0,0.00010055,2]
[405289078,1770947440421,-567.37926716,0.0001011,2]
[405289079,1770947440430,-200.0,0.0001011,2]
[405289080,1770947440441,-500.0,0.0001011,2]
[405289081,1770947440451,-500.0,0.0001011,2]
[405289082,1770947440464,-207.78924877,0.00010164,2]
[405289083,1770947440474,-500.0,0.00010164,2]
[405289084,1770947440485,-500.0,0.00010164,2]
[405289085,1770947440494,-500.0,0.00010195,2]
[405289086,1770947440504,-500.0,0.00010219,2]
[405289087,1770947440514,-500.0,0.00010219,2]
[405289088,1770947440524,-250.0,0.00010232,2]
[405289089,1770947440535,-500.0,0.00010274,2]
[405289090,1770947440548,-222.18597751,0.00010274,2]
[405289091,1770947440558,-433.0,0.00010292,2]
[405289092,1770947440568,-3292.0,0.00010308,2]
[405289093,1770947440579,-500.0,0.00010329,2]
[405289094,1770947440589,-316.63739434,0.00010384,2]
[405289095,1770947440599,-500.0,0.00010469,2]
[405289096,1770947440612,-932.61,0.00010538,2]
[405289097,1770947440622,-200.0,0.00010548,2]
[405289098,1770947440632,-500.0,0.00010548,2]
[405289100,1770947440641,-200.0,0.00010548,2]
[405289101,1770947440651,-1683.14,0.00010675,2]
[405289102,1770947440663,-200.0,0.00010709,2]
[405289103,1770947440673,-500.0,0.00010743,2]
[405289104,1770947440683,-6722.85665587,0.000109,2]
[405289105,1770947440692,-6722.85665584,0.000109,2]
[405289106,1770947440702,-16883.32,0.00010959,2]
[405289107,1770947440712,-9413.46,0.00010959,2]
[405289108,1770947440722,-150.0,0.00010959,2]
[405289109,1770947440732,-3200.48361746,0.00010999,2]
[405289110,1770947440742,-500.0,0.00011017,2]
[405289111,1770947440752,-150.0,0.00011046,7]
[405289112,1770947440763,-200.0,0.00011096,2]
[405289113,1770947440774,-511.89126025,0.00011096,2]
[405289114,1770947440784,-200.0,0.00011096,2]
[405289115,1770947440794,-51672.12114964,0.00011099,2]
[405289116,1770947440804,-56051.33800694,0.00011099,2]
[405289117,1770947440815,-56051.33800685,0.00011099,2]